Cogmind - Beta 14 @@@ ROGUE MODE // 2024.11.20 @ 13:42:07 Player: akira Result: Smashed by cave-in Performance ------------- Evolutions (0) 0 Regions Visited (2) 400 Robots Destroyed (5) 25 Value Destroyed (196) 196 Prototype IDs (1) 20 Alien Tech Used (0) 0 Bonus (0) 0 TOTAL SCORE: 641 Bonus ------- None Cogmind --------- Core Integrity 0/250 Matter 244/300 Energy 100/100 System Corruption 12% Temperature Cool (0) Movement Walking (120) Location -10/Mines Parts ------- > --- POWER (1) -------- (None) > --- PROPULSION (2) --- Aluminum Leg > --- UTILITY (2) ------ Bomb Drone Bay (16/16) > --- WEAPON (2) ------- (None) > --- INVENTORY (5) ---- Light Ion Engine EM Pulse Gun Peak State ------------ > --- POWER ------------ Light Ion Engine > --- PROPULSION ------- Aluminum Leg Aluminum Leg > --- UTILITY ---------- Bomb Drone Bay > --- WEAPON ----------- Light Assault Rifle > --- INVENTORY -------- Light Ion Engine EM Pulse Gun [Rating: 18] Favorites ----------- Power Light Ion Engine Engine Light Ion Engine Propulsion Light Treads Treads Light Treads Leg Aluminum Leg Utility Small Storage Unit Device Bomb Drone Bay Storage Small Storage Unit Weapon Light Assault Rifle Ballistic Gun Light Assault Rifle Special Weapon Mining Laser Build | -11 -10 -10 ------- Run | Yrd Mat Min Slots Evolved . | . . . Power . | . . . Propulsion . | . . . Utility . | . . . Weapon . | . . . Parts Attached 11 | 6 . 5 Power 1 | 1 . . Engine 1 | 1 . . Core . | . . . Reactor . | . . . Propulsion 4 | 2 . 2 Treads 2 | 2 . . Leg 2 | . . 2 Wheel . | . . . Hover . | . . . Flight . | . . . Utility 2 | 1 . 1 Device 1 | . . 1 Storage 1 | 1 . . Processor . | . . . Hackware . | . . . Protection . | . . . Artifact . | . . . Weapon 4 | 2 . 2 Energy Gun . | . . . Energy Cannon . | . . . Ballistic Gun 3 | 2 . 1 Ballistic Cannon . | . . . Launcher . | . . . Special Weapon 1 | . . 1 Impact Weapon . | . . . Slashing Weapon . | . . . Piercing Weapon . | . . . Special Melee Weapon . | . . . Unidentified Prototypes 1 | . . 1 Parts Lost 5 | . . 5 Power 1 | . . 1 Propulsion 1 | . . 1 Utility 1 | . . 1 Weapon 2 | . . 2 Highest Loss Streak 3 | . . 3 To Critical Strikes . | . . . Average Slot Usage (%) 81 | . 85 72 Engine 13 | . 14 12 Treads 22 | . 28 5 Leg 5 | . . 21 Device 1 | . . 5 Storage 12 | . 14 7 Ballistic Gun 25 | . 28 16 Peak Build Rating 18 | 6 7 18 Average Rating 7 | 4 6 11 On Entrance 4 | . 6 7 Naked Turns . | . . . Heaviest Build 10 | 10 10 10 Greatest Support 40 | 40 40 40 Greatest Overweight (x) . | . . . Average Overweight (x) . | . . . Largest Inventory Capacity 8 | 8 8 8 Average Capacity 7 | 6 8 6 Most Carried 8 | 6 8 8 Average Carried 6 | 3 7 5 Final Capacity 8 | 8 8 5 Final Carried 8 | 6 8 2 Class Distribution -------------------- 100% | Mutant Dominant Class ---------------- Mutant | -10/Materials Mutant | -10/Mines Resources | -11 -10 -10 ----------- Run | Yrd Mat Min Matter Collected 310 | 207 103 . Remotely . | . . . Salvage Created 237 | . 237 . Parts 11 | . 11 . Haulers Intercepted . | . . . Recyclers Shooed . | . . . Parts Field Recycled . | . . . Retrieved Matter . | . . . Parts Self-Destructed . | . . . Prevented . | . . . Kills | -11 -10 -10 ------- Run | Yrd Mat Min Combat Hostiles Destroyed 5 | . 5 . Guns 5 | . 5 . Classes Destroyed 1 | . 1 . Grunt 5 | . 5 . Best Kill Streak 2 | . 2 . Combat Bots Only 2 | . 2 . Max Kills in Single Turn 1 | . 1 . Gunslinging . | . . . Exploded . | . . . Melee . | . . . Uniques/NPCs Destroyed . | . . . Combat | -11 -10 -10 -------- Run | Yrd Mat Min Hostile Shots Fired 28 | . 28 . Missed 11 | . 11 . Damage Taken 1111 | . 265 846 Core 292 | . 29 263 Absorbed by Shields . | . . . Core Remaining (%) 100 | 100 . . Volleys Fired 50 | . 25 25 Largest 2 | . 2 2 Hottest 120 | . 40 120 Shots Fired 75 | . 50 25 Gun 71 | . 50 21 Cannon . | . . . Launcher . | . . . Special 4 | . . 4 Kinetic 71 | . 50 21 Thermal 4 | . . 4 Explosive . | . . . Electromagnetic . | . . . Robot Hit Streak 7 | . 7 . Robot Miss Streak 2 | . 2 . Penetration Max . | . . . Secondary Targets . | . . . Shots Hit Robots 33 | . 33 . Core Hits 15 | . 15 . Critical Kills . | . . . Critical Parts Destroyed . | . . . Critical Strikes . | . . . Melee Attacks . | . . . Impact . | . . . Slashing . | . . . Piercing . | . . . Sneak Attacks . | . . . Combat Hostiles . | . . . Follow-up Attacks . | . . . Damage Inflicted 281 | . 281 . Guns 281 | . 281 . Cannons . | . . . Explosions . | . . . Melee . | . . . Ramming . | . . . Kinetic 281 | . 281 . Thermal . | . . . Explosive . | . . . Electromagnetic . | . . . Impact . | . . . Slashing . | . . . Piercing . | . . . Highest Corruption 9 | . . 9 Average Corruption 5 | . . 5 Corruption Purged . | . . . Corruption Blocked . | . . . Effects 2 | . . 2 Matter Fused 1 | . . 1 Weapon Failures 1 | . . 1 Overload Shots . | . . . Overflow Damage . | . . . Projectiles . | . . . Explosions . | . . . Melee . | . . . Knockbacks . | . . . Impact . | . . . Kinetic . | . . . Secondary . | . . . Self-Inflicted Damage . | . . . Shots . | . . . Rammed . | . . . Targets Rammed . | . . . Kicked . | . . . Crushed . | . . . Highest Temperature 42 | . 36 42 Average Temperature 16 | . 12 23 Received Heat Transfer 171 | . 171 . Siege Activations . | . . . Robots Corrupted . | . . . Combat Hostiles . | . . . Parts Fried . | . . . Impact Corruptions . | . . . Robots Melted . | . . . Combat Hostiles . | . . . Parts Melted . | . . . Heat Transferred . | . . . Parts Sabotaged . | . . . Parts Stolen . | . . . Parts Stripped . | . . . Power Chain Reactions . | . . . Alert | -11 -10 -10 ------- Run | Yrd Mat Min Peak Influence 165 | . 165 67 Initial 64 | . . 64 Average 52 | . 64 56 Maximum Alert Level . | . . . Low Security (%) 100 | 100 100 100 Level 1 . | . . . Level 2 . | . . . Level 3 . | . . . Level 4 . | . . . Level 5 . | . . . High Security . | . . . Max Security . | . . . Squads Dispatched 1 | . 1 . Investigation . | . . . Extermination . | . . . Reinforcement 1 | . 1 . Assault . | . . . Garrison . | . . . Intercept . | . . . Searches Triggered . | . . . Construction Impeded . | . . . Haulers Reinforced . | . . . Active Scanning Responses . | . . . Cargo Convoy Interrupts . | . . . Stealth | -11 -10 -10 --------- Run | Yrd Mat Min Distress Signals 2 | . 2 . Communications Jammed . | . . . Distress Signals . | . . . Times Spotted 7 | . 7 . Peak Tracking Total 3 | . 3 . Tactical Retreats . | . . . Traps | -11 -10 -10 ------- Run | Yrd Mat Min Traps Triggered 1 | . 1 . Indirectly . | . . . Trap Hack Attempts . | . . . Triggered . | . . . Disarmed . | . . . Reprogrammed . | . . . Reused . | . . . Traps Extracted . | . . . Installed . | . . . Triggered . | . . . Machines | -11 -10 -10 ---------- Run | Yrd Mat Min Machines Disabled . | . . . Max in Single Turn . | . . . Machines Repaired . | . . . Machines Dismantled . | . . . Machines Sabotaged . | . . . Overloaded Fab Kills . | . . . Hacking | -11 -10 -10 --------- Run | Yrd Mat Min Machines Accessed 1 | . . 1 Terminals . | . . . Fabricators . | . . . Repair Stations . | . . . Recycling Units . | . . . Scanalyzers . | . . . Garrison Access . | . . . Total Hacks 1 | . . 1 Successful 1 | . . 1 Failed . | . . . Catastrophic . | . . . Database Lockouts . | . . . Manual . | . . . Terminals . | . . . Fabricators . | . . . Repair Stations . | . . . Recycling Units . | . . . Scanalyzers . | . . . Garrison Access . | . . . Terminal Hacks 1 | . . 1 Open Door 1 | . . 1 Fabricator Hacks . | . . . Repair Station Hacks . | . . . Recycling Unit Hacks . | . . . Scanalyzer . | . . . Garrison Access Hacks . | . . . Unauthorized Hacks . | . . . Terminals . | . . . Fabricators . | . . . Repair Stations . | . . . Recycling Units . | . . . Scanalyzers . | . . . Garrison Access . | . . . Data Cores Recovered . | . . . Used . | . . . Hacking Detections . | . . . Full Trace Events . | . . . Feedback Events . | . . . Feedback Blocked . | . . . Robot Schematics Acquired . | . . . Robots Built . | . . . Authchips . | . . . Time . | . . . Total Robot Build Rating . | . . . Part Schematics Acquired . | . . . Parts Built . | . . . Authchips . | . . . Time . | . . . Total Part Build Rating . | . . . Parts Repaired . | . . . Time . | . . . Parts Recycled . | . . . Recycled Matter . | . . . Retrieved Matter . | . . . Retrieved Components . | . . . Parts Scanalyzed . | . . . Part Schematics Acquired . | . . . Parts Damaged . | . . . Bothacking | -11 -10 -10 ------------ Run | Yrd Mat Min Used RIF Installer . | . . . Robots Hacked . | . . . Non-combat . | . . . Combat . | . . . Robot Hacks Applied . | . . . Relay Couplers Released . | . . . Fabnet Peak Effective % . | . . . Robots Rewired . | . . . Allies Hacked . | . . . Hacks Repelled . | . . . Allies | -11 -10 -10 -------- Run | Yrd Mat Min Total Allies . | . . . Largest Group . | . . . Highest-Rated Group . | . . . Highest-Rated Ally . | . . . Total Orders . | . . . Ally Attacks . | . . . Total Damage . | . . . Kills . | . . . Allies Corrupted . | . . . Allies Melted . | . . . Intel | -11 -10 -10 ------- Run | Yrd Mat Min Robot Analysis Total . | . . . Derelict Logs Recovered . | . . . Drone Launches . | . . . Drone Recoveries . | . . . Exploration | -11 -10 -10 ------------- Run | Yrd Mat Min Turns Passed 528 | 88 338 102 Spaces Moved 225 | 47 149 29 Core 4 | 4 . . Treads 200 | 43 149 8 Legs 21 | . . 21 Wheels . | . . . Hover . | . . . Flight . | . . . Fastest Speed 50 | 50 160 120 Average Speed 154 | 150 160 131 Slowest Speed 160 | 160 160 160 Overloaded Moves . | . . . Propulsion Burnouts . | . . . Robots Hopped . | . . . Cave-ins Triggered 4 | . . 4 Exploration Rate (%) 14 | 4 32 7 Regions Visited 2 Branch Regions 1 Pre-discovered Areas . | . . . Known Exits Taken . | . . . Unknown Exits Taken 2 | 1 1 . Scrap Searched . | . . . Spaces Dug 4 | . . 4 Terrain Destroyed 4 | . . 4 Melee . | . . . Projectile 4 | . . 4 AOE . | . . . Terrain Rammed . | . . . Walls Destroyed . | . . . Machines Disabled . | . . . Actions | -11 -10 -10 --------- Run | Yrd Mat Min Total 340 | 64 210 66 Wait 29 | . 29 . Move 223 | 46 148 29 Hop . | . . . Pick Up 19 | 12 5 2 Fast Attach . | . . . Attach 8 | 6 . 2 Detach 1 | . . 1 Swap 3 | . . 3 Drop 7 | . 3 4 Fire 50 | . 25 25 Melee . | . . . Ram . | . . . Kick . | . . . Crush . | . . . Escape Stasis . | . . . Rewire . | . . . Trap . | . . . Miscellaneous . | . . . Route ------- -11/Scrapyard -10/Materials (discovered 2 exits: *Min x2) -10/Mines (discovered 1 exit: [*Mat]) History --------- Turn | Location | Event 28 | -11/Scrapyard | Discovered new exit (range 15) 89 | -11/Scrapyard | Entered Materials 167 | -10/Materials | Discovered new exit (range 9) 318 | -10/Materials | Build established: Mutant 320 | -10/Materials | Discovered new exit (range 15) 427 | -10/Materials | Entered Mines 427 | -10/Mines | Discovered new exit (range 16) 440 | -10/Mines | Found the Drone Emporium 448 | -10/Mines | Found Prototype Device 485 | -10/Mines | Met a Derelict bent on vengeance 489 | -10/Mines | Crushed by falling debris 490 | -10/Mines | Identified Bomb Drone Bay 522 | -10/Mines | Crushed by falling debris 522 | -10/Mines | Core integrity fell below 50% 529 | -10/Mines | Crushed by falling debris 529 | -10/Mines | Core integrity fell below 20% 530 | -10/Mines | Crushed by falling debris 530 | -10/Mines | Smashed by cave-in Last Messages --------------- 00489_ Mining Laser destroyed. 00489_ System corrupted by crushing effect (+3). 00489_ Sml. Storage Unit destroyed. 00489_ System corrupted by crushing effect (+2). 00489_ Lgt. Nuclear Core crushed. 00490_ Identified Bomb Drone Bay. 00500_ System corrupted: Matter fused (-10). 00522_ The unstable cave ceiling collapses. 00522_ Crushed by falling debris. 00522_ Lgt. Ion Engine destroyed. 00522_ System corrupted by crushing effect (+1). 00528_ System corrupted: Lgt. Assault Rifle jammed. 00529_ The unstable cave ceiling collapses. 00529_ Crushed by falling debris. 00529_ Aluminum Leg destroyed. 00529_ System corrupted by crushing effect (+3). 00530_ The unstable cave ceiling collapses. 00530_ Crushed by falling debris. 00530_ Lgt. Assault Rifle destroyed. 00530_ System corrupted by crushing effect (+3). Map ----- +----------------------------------------------------+ | ????????????????????????????????????????? | | ????????????????????????????????????????? | | ????????????????????????????????????????? | | ????????????????????????????????????????? | | ????????????????????????????????????????? | | ????????????????????????????????????????? | | ????????????????????????????????????????? | | ????????????????????????????????????????? | | ????????????????????????????????????????? | | ????????????????????????????????????????? | | ????????????????????????????????????????? | | ?????????????????????????????????###????? | | ???????????????????????????????## ##???? | | ??????????????????????????###### ##??? | | ?????????????????????????##""## #??? | | ?????????????????????????#" #X #??? | | ?????????????????????????#" == #??? | | ?????????????????????????#" # #??? | | ?????????????????????????#" # # #??? | | ?????????????????????????##""## #??? | | ??????????????????????????####### ##??? | | ??????????????????????????????## ##???? | | ??????????? ######### ##???? | | ??????????? < =[ #???? | | ?????????????????# ####]## #?? | | ????????????????????????#@##### #? | | ????????????????????????###???## #? | | ???????????????????????????????## #? | | ????????????????????????????????# ##? | | ???????????????????????????????? ##?? | | ????????????????????????????????## ##??? | | ?????????????????????????????????####???? | | ????????????????????????????????????????? | | ????????????????????????????????????????? | | ????????????????????????????????????????? | | ????????????????????????????????????????? | | ????????????????????????????????????????? | | ????????????????????????????????????????? | | ????????????????????????????????????????? | | ????????????????????????????????????????? | | ????????????????????????????????????????? | | ????????????????????????????????????????? | | ????????????????????????????????????????? | | ????????????????????????????????????????? | | ????????????????????????????????????????? | | ????????????????????????????????????????? | | ????????????????????????????????????????? | | ????????????????????????????????????????? | | ????????????????????????????????????????? | | ????????????????????????????????????????? | +----------------------------------------------------+ Best States ------------- Heat Dissipation 25 Energy Generation 10 Energy Capacity 125 Matter Stores 300 Matter Capacity 300 Sight Range 16 Terrain Scan Density 10 Evasion (%) 55 Recoil Reduction 2 Item Schematics ----------------- None Robot Schematics ------------------ None Fabricated ------------ Nothing Alien Tech Used ----------------- None Achievements -------------- None Challenges ------------ None Game ------ Seed CannonCompactWell Manual? 0 Play Time 00:08:33 Cumulative 5.6 hours Start 2024.11.20 @ 13:31:48 End 2024.11.20 @ 13:42:07 Sessions 1 Manual Loads 0 Difficulty Rogue Special Mode None Game No. 10 Rogue 10 Adventurer 0 Explorer 0 Win Type - Total 0 Types 0/0/0/0/0/0/0/0/0 Lore% 0 Gallery% 11 Achievement% 11 Wizard Run 0 Options --------- Layout 1 ASCII 0 Keyboard 0 Movement Mouse Keybinds 0 Fullscreen 1 Font 16/SmallcapsGlow Map View 27x19 Zoom Use 99% Tactical HUD 1 Map Filters NONE Filters NONE Steam 1 RUN: 900cd31c-4be1-402b-a9a1-9985e1f76f1d